fUST/lending_fUST_20250615
["ID","MTS","AMOUNT","RATE_DAILY","PERIOD"]
[365903021,1749979842925,-460.0,0.00021012,2]
[365903023,1749979842933,-307.79,0.00021012,2]
[365903025,1749979842942,-1840.42,0.00021013,2]
[365903027,1749979842952,-708.28,0.00021013,2]
[365903029,1749979842961,-460.0,0.00021013,2]
[365903031,1749979842970,-460.0,0.00021013,2]
[365903034,1749979842989,-460.0,0.00021013,2]
[365903036,1749979842999,-460.0,0.00021013,2]
[365903038,1749979843008,-460.0,0.00021013,2]
[365903040,1749979843017,-460.0,0.00021013,2]
[365903042,1749979843027,-460.0,0.00021013,2]
[365903044,1749979843037,-460.0,0.00021013,2]
[365903046,1749979843046,-460.0,0.00021013,2]
[365903048,1749979843055,-460.0,0.00021013,2]
[365903050,1749979843064,-460.0,0.00021013,2]
[365903052,1749979843074,-493.83,0.00021013,2]
[365903054,1749979843083,-363.19553997,0.00021015,2]
[365903056,1749979843094,-1502.33,0.00021015,2]
[365903058,1749979843104,-460.0,0.00021015,2]
[365903060,1749979843113,-937.65,0.00021015,2]
[365903062,1749979843123,-709.91,0.00021015,2]
[365903064,1749979843132,-460.0,0.00021015,2]
[365903066,1749979843142,-916.98,0.00021015,2]
[365903068,1749979843152,-1340.42,0.00021015,2]
[365903070,1749979843161,-460.0,0.00021016,2]
[365903072,1749979843171,-460.0,0.00021016,2]
[365903074,1749979843180,-460.0,0.00021016,2]
[365903076,1749979843189,-460.0,0.00021016,2]
[365903078,1749979843198,-482.88,0.00021016,2]
[365903080,1749979843208,-1627.02,0.00021016,2]
[365903082,1749979843218,-460.0,0.00021016,2]
[365903084,1749979843227,-765.73,0.00021016,2]
[365903086,1749979843236,-648.01561426,0.00021017,2]
[365903088,1749979843246,-500.0,0.00021021,2]
[365903090,1749979843255,-500.0,0.00021021,2]
[365903092,1749979843264,-771.63379709,0.00021072,4]
[365903094,1749979843274,-869.6,0.000211,2]
[365903096,1749979843283,-1000.0,0.00021222,2]
[365903097,1749979843293,-168.0,0.00021236,2]
[365903098,1749979843302,-771.63379709,0.00021245,4]
[365903099,1749979843312,-1634.83,0.00021284,2]
[365903100,1749979843322,-460.0,0.00021284,2]
[365903101,1749979843331,-852.81,0.00021284,2]
[365903102,1749979843340,-918.13,0.00021284,2]
[365903103,1749979843349,-294.09,0.00021284,2]
[365903104,1749979843358,-676.32,0.00021284,2]
[365903105,1749979843368,-680.79,0.00021284,2]
[365903106,1749979843377,-1358.41,0.00021286,2]
[365903107,1749979843387,-1654.7,0.00021286,2]
[365903108,1749979843396,-674.14,0.00021286,2]
[365903109,1749979843406,-460.0,0.00021286,2]
[365903110,1749979843416,-460.0,0.00021286,2]
[365903112,1749979843425,-460.0,0.00021286,2]
[365903114,1749979843435,-460.0,0.00021286,2]
[365903116,1749979843445,-460.0,0.00021286,2]
[365903118,1749979843454,-1840.42,0.00021287,2]
[365903120,1749979843463,-708.28,0.00021287,2]
[365903122,1749979843473,-460.0,0.00021287,2]
[365903124,1749979843482,-460.0,0.00021287,2]
[365903125,1749979843491,-460.0,0.00021287,2]
[365903128,1749979843501,-460.0,0.00021287,2]
[365903129,1749979843510,-460.0,0.00021287,2]
[365903131,1749979843520,-460.0,0.00021287,2]
[365903134,1749979843529,-460.0,0.00021287,2]
[365903136,1749979843540,-460.0,0.00021287,2]
[365903138,1749979843549,-460.0,0.00021287,2]
[365903140,1749979843559,-207.15048137,0.00021287,2]
[365903141,1749979843569,-493.83,0.00021287,2]
[365903143,1749979843579,-1502.33,0.00021289,2]
[365903145,1749979843589,-460.0,0.00021289,2]
[365903147,1749979843598,-937.65,0.00021289,2]
[365903149,1749979843608,-709.91,0.00021289,2]
[365903152,1749979843618,-460.0,0.00021289,2]
[365903154,1749979843627,-916.98,0.00021289,2]
[365903156,1749979843637,-1340.42,0.00021289,2]
[365903158,1749979843646,-460.0,0.0002129,2]
[365903159,1749979843656,-460.0,0.0002129,2]
[365903161,1749979843666,-460.0,0.0002129,2]
[365903163,1749979843675,-460.0,0.0002129,2]
[365903165,1749979843685,-482.88,0.0002129,2]
[365903167,1749979843694,-1627.02,0.0002129,2]
[365903169,1749979843703,-460.0,0.0002129,2]
[365903171,1749979843712,-765.73,0.0002129,2]
[365903173,1749979843722,-771.63379709,0.00021417,5]
[365903175,1749979843731,-268.99297369,0.00021457,2]
[365903177,1749979843740,-2591.42479894,0.0002146,2]
[365903179,1749979843749,-1634.83,0.00021558,2]
[365903181,1749979843759,-460.0,0.00021558,2]
[365903183,1749979843768,-852.81,0.00021558,2]
[365903185,1749979843777,-918.13,0.00021558,2]
[365903187,1749979843786,-676.32,0.00021558,2]
[365903189,1749979843796,-680.79,0.00021558,2]
[365903191,1749979843806,-1358.41,0.0002156,2]
[365903194,1749979843816,-1654.7,0.0002156,2]
[365903196,1749979843825,-674.14,0.0002156,2]
[365903198,1749979843834,-460.0,0.0002156,2]
[365903200,1749979843843,-460.0,0.0002156,2]
[365903202,1749979843852,-460.0,0.0002156,2]
[365903204,1749979843861,-460.0,0.0002156,2]
[365903206,1749979843870,-460.0,0.0002156,2]
[365903208,1749979843880,-1840.42,0.00021561,2]
[365903209,1749979843889,-708.28,0.00021561,2]
[365903212,1749979843898,-460.0,0.00021561,2]
[365903213,1749979843907,-460.0,0.00021561,2]
[365903215,1749979843917,-460.0,0.00021561,2]
[365903217,1749979843926,-437.93213236,0.00021561,2]
[365903220,1749979843936,-460.0,0.00021561,2]
[365903222,1749979843945,-460.0,0.00021561,2]
[365903223,1749979843954,-460.0,0.00021561,2]
[365903225,1749979843963,-460.0,0.00021561,2]
[365903227,1749979843973,-460.0,0.00021561,2]
[365903229,1749979843983,-493.83,0.00021561,2]
[365903231,1749979843992,-1502.33,0.00021563,2]
[365903233,1749979844002,-460.0,0.00021563,2]
[365903235,1749979844011,-937.65,0.00021563,2]
[365903237,1749979844020,-709.91,0.00021563,2]
[365903239,1749979844029,-460.0,0.00021563,2]
[365903241,1749979844039,-916.98,0.00021563,2]
[365903243,1749979844048,-1340.42,0.00021563,2]
[365903245,1749979844057,-460.0,0.00021564,2]
[365903247,1749979844066,-460.0,0.00021564,2]
[365903250,1749979844075,-460.0,0.00021564,2]
[365903252,1749979844085,-460.0,0.00021564,2]
[365903254,1749979844094,-482.88,0.00021564,2]
[365903256,1749979844110,-1627.02,0.00021564,2]
[365903258,1749979844119,-460.0,0.00021564,2]
[365903260,1749979844128,-765.73,0.00021564,2]
[365903262,1749979844137,-771.63379709,0.0002159,5]
[365903264,1749979844147,-648.01561426,0.0002167,2]
[365903266,1749979844156,-160.0,0.00021761,2]
[365903268,1749979844165,-771.63379709,0.00021762,5]
[365903270,1749979844174,-1500.0,0.0002177,2]
[365903272,1749979844183,-160.0,0.00021776,2]
[365903274,1749979844192,-835.55256958,0.00021776,2]
[365903276,1749979844202,-160.0,0.00021776,2]
[365903278,1749979844212,-424.47602138,0.00021776,2]
[365903280,1749979844222,-160.0,0.00021776,2]
[365903282,1749979844231,-213.32089821,0.00021776,2]
[365903284,1749979844240,-229.86375354,0.00021776,2]
[365903286,1749979844249,-845.25843836,0.00021776,2]
[365903288,1749979844258,-1634.83,0.00021832,2]
[365903290,1749979844268,-335.16484268,0.00021832,2]
[365903292,1749979844278,-852.81,0.00021832,2]
[365903294,1749979844287,-918.13,0.00021832,2]
[365903296,1749979844297,-676.32,0.00021832,2]
[365903298,1749979844306,-680.79,0.00021832,2]
[365903300,1749979844315,-1358.41,0.00021834,2]
[365903302,1749979844324,-1654.7,0.00021834,2]
[365903304,1749979844334,-674.14,0.00021834,2]
[365903306,1749979844343,-460.0,0.00021834,2]
[365903308,1749979844352,-460.0,0.00021834,2]
[365903310,1749979844361,-460.0,0.00021834,2]
[365903312,1749979844370,-460.0,0.00021834,2]
[365903314,1749979844380,-460.0,0.00021834,2]
[365903316,1749979844389,-1840.42,0.00021835,2]
[365903318,1749979844400,-200.0,0.00021835,10]
[365903320,1749979844409,-200.0,0.00021835,10]
[365903322,1749979844419,-200.0,0.00021835,10]
[365903324,1749979844428,-200.0,0.00021835,10]
[365903326,1749979844437,-208.513075,0.00021835,10]
[365903327,1749979844447,-708.28,0.00021835,2]
[365903329,1749979844457,-460.0,0.00021835,2]
[365903331,1749979844466,-460.0,0.00021835,2]
[365903333,1749979844476,-460.0,0.00021835,2]
[365903335,1749979844484,-460.0,0.00021835,2]
[365903337,1749979844493,-261.67870923,0.00021835,2]
[365903338,1749979844503,-460.0,0.00021835,2]
[365903340,1749979844512,-460.0,0.00021835,2]
[365903342,1749979844522,-460.0,0.00021835,2]
[365903344,1749979844531,-493.83,0.00021835,2]
[365903346,1749979844541,-1502.33,0.00021837,2]
[365903348,1749979844551,-460.0,0.00021837,2]
[365903350,1749979844561,-937.65,0.00021837,2]
[365903352,1749979844573,-709.91,0.00021837,2]
[365903354,1749979844583,-460.0,0.00021837,2]
[365903356,1749979844592,-916.98,0.00021837,2]
[365903358,1749979844602,-1340.42,0.00021837,2]
[365903360,1749979844612,-460.0,0.00021838,2]
[365903362,1749979844621,-460.0,0.00021838,2]
[365903364,1749979844631,-460.0,0.00021838,2]
[365903366,1749979844641,-460.0,0.00021838,2]
[365903368,1749979844650,-482.88,0.00021838,2]
[365903370,1749979844659,-1627.02,0.00021838,2]
[365903372,1749979844668,-460.0,0.00021838,2]
[365903374,1749979844678,-765.73,0.00021838,2]
[365903376,1749979844687,-7255.17,0.0002193,2]
[365903378,1749979844696,-771.63379709,0.00021934,6]
[365903380,1749979844705,-2128.0,0.00022,2]
[365903382,1749979844715,-48562.73962672,0.00022,2]
[365903384,1749979844724,-416.46,0.00022099,3]
[365903386,1749979844733,-1634.83,0.00022106,2]
[365903388,1749979844742,-852.81,0.00022106,2]
[365903390,1749979844752,-918.13,0.00022106,2]
[365903403,1749979844761,-676.32,0.00022106,2]
[365903407,1749979844902,-680.79,0.00022106,2]
[365903409,1749979844911,-771.63379709,0.00022107,6]
[365903411,1749979844921,-1358.41,0.00022108,2]
[365903413,1749979844930,-1654.7,0.00022108,2]
[365903415,1749979844939,-674.14,0.00022108,2]
[365903417,1749979844949,-460.0,0.00022108,2]
[365903419,1749979844958,-460.0,0.00022108,2]
[365903421,1749979844967,-460.0,0.00022108,2]
[365903423,1749979844976,-460.0,0.00022108,2]
[365903425,1749979844985,-460.0,0.00022108,2]
[365903427,1749979844994,-1840.42,0.00022109,2]
[365903429,1749979845003,-708.28,0.00022109,2]
[365903430,1749979845012,-535.76629417,0.00022109,2]
[365903432,1749979845022,-210.45089861,0.00022109,2]
[365903434,1749979845032,-379.0977183,0.00022109,2]
[365903436,1749979845041,-460.0,0.00022109,2]
[365903438,1749979845050,-460.0,0.00022109,2]
[365903440,1749979845060,-460.0,0.00022109,2]
[365903442,1749979845069,-460.0,0.00022109,2]
[365903444,1749979845078,-493.83,0.00022109,2]
[365903446,1749979845088,-1502.33,0.00022111,2]
[365903448,1749979845097,-460.0,0.00022111,2]
[365903450,1749979845111,-937.65,0.00022111,2]
[365903452,1749979845119,-709.91,0.00022111,2]
[365903454,1749979845129,-460.0,0.00022111,2]
[365903456,1749979845138,-916.98,0.00022111,2]
[365903458,1749979845147,-1340.42,0.00022111,2]
[365903460,1749979845158,-460.0,0.00022112,2]
[365903462,1749979845167,-460.0,0.00022112,2]
[365903464,1749979845176,-460.0,0.00022112,2]
[365903466,1749979845186,-460.0,0.00022112,2]
[365903468,1749979845197,-482.88,0.00022112,2]
[365903470,1749979845206,-1627.02,0.00022112,2]
[365903472,1749979845215,-460.0,0.00022112,2]
[365903474,1749979845225,-765.73,0.00022112,2]
[365903476,1749979845234,-160.0,0.00022133,2]
[365903478,1749979845243,-500.0,0.00022191,2]
[365903480,1749979845252,-180.04360434,0.00022191,2]
[365903482,1749979845261,-500.0,0.00022191,2]
[365903484,1749979845271,-500.0,0.00022191,2]
[365903486,1749979845280,-500.0,0.00022191,2]
[365903488,1749979845289,-587.50809946,0.00022191,2]
[365903490,1749979845298,-500.0,0.00022191,2]
[365903492,1749979845308,-500.0,0.00022191,2]
[365903494,1749979845317,-500.0,0.00022191,2]
[365903495,1749979845326,-500.0,0.00022191,2]
[365903497,1749979845335,-600.0,0.00022191,2]
[365903499,1749979845344,-500.0,0.00022191,2]
[365903501,1749979845353,-500.0,0.00022191,2]
[365903503,1749979845362,-500.0,0.00022244,2]
[365903505,1749979845372,-500.0,0.00022254,2]
[365903507,1749979845381,-420.0,0.00022267,2]
[365903509,1749979845391,-420.0,0.00022267,2]
[365903511,1749979845400,-420.0,0.00022268,2]
[365903513,1749979845410,-268.99297369,0.00022271,2]
[365903515,1749979845419,-771.63379709,0.00022279,6]
[365903517,1749979845428,-748.52,0.00022294,3]
[365903519,1749979845437,-869.6,0.000223,7]
[365903521,1749979845449,-500.0,0.000223,2]
[365903523,1749979845459,-583.4932144,0.000223,2]
[365903525,1749979845469,-500.0,0.000223,2]
[365903527,1749979845478,-500.0,0.000223,2]
[365903529,1749979845488,-500.0,0.00022306,2]
[365903531,1749979845499,-500.0,0.00022318,2]
[365903534,1749979845508,-648.01561426,0.00022324,2]
[365903535,1749979845518,-500.0,0.00022356,2]
[365903537,1749979845527,-1680.0,0.00022372,2]
[365903539,1749979845537,-1634.83,0.0002238,2]
[365903541,1749979845546,-852.81,0.0002238,2]
[365903543,1749979845555,-918.13,0.0002238,2]
[365903545,1749979845565,-676.32,0.0002238,2]
[365903547,1749979845574,-680.79,0.0002238,2]
[365903549,1749979845583,-1358.41,0.00022382,2]
[365903551,1749979845592,-1654.7,0.00022382,2]
[365903553,1749979845602,-674.14,0.00022382,2]
[365903555,1749979845612,-460.0,0.00022382,2]
[365903557,1749979845621,-460.0,0.00022382,2]
[365903559,1749979845630,-460.0,0.00022382,2]
[365903561,1749979845639,-460.0,0.00022382,2]
[365903563,1749979845648,-460.0,0.00022382,2]
[365903565,1749979845658,-1840.42,0.00022383,2]
[365903567,1749979845667,-708.28,0.00022383,2]
[365903569,1749979845676,-460.0,0.00022383,2]
[365903571,1749979845685,-460.0,0.00022383,2]
[365903572,1749979845695,-460.0,0.00022383,2]
[365903574,1749979845705,-460.0,0.00022383,2]
[365903575,1749979845714,-493.83,0.00022383,2]
[365903576,1749979845723,-1502.33,0.00022385,2]
[365903577,1749979845733,-460.0,0.00022385,2]
[365903578,1749979845742,-937.65,0.00022385,2]
[365903579,1749979845751,-709.91,0.00022385,2]
[365903580,1749979845760,-460.0,0.00022385,2]
[365903581,1749979845770,-916.98,0.00022385,2]
[365903582,1749979845779,-1340.42,0.00022385,2]
[365903583,1749979845787,-460.0,0.00022386,2]
[365903584,1749979845797,-460.0,0.00022386,2]
[365903585,1749979845806,-460.0,0.00022386,2]
[365903586,1749979845815,-460.0,0.00022386,2]
[365903587,1749979845823,-482.88,0.00022386,2]
[365903588,1749979845832,-1627.02,0.00022386,2]
[365903589,1749979845841,-460.0,0.00022386,2]
[365903590,1749979845851,-765.73,0.00022386,2]
[365903591,1749979845859,-748.52,0.00022394,7]
[365903592,1749979845869,-207.4,0.00022431,2]
[365903593,1749979845878,-500.0,0.00022445,2]
[365903594,1749979845887,-201.84007092,0.00022445,2]
[365903595,1749979845896,-771.63379709,0.00022452,7]
[365903596,1749979845905,-500.0,0.00022482,2]
[365903597,1749979845914,-500.0,0.00022482,2]
[365903598,1749979845922,-748.52,0.00022494,7]
[365903599,1749979845932,-748.52,0.00022594,3]
[365903600,1749979845941,-771.63379709,0.00022624,7]
[365903601,1749979845951,-1634.83,0.00022654,2]
[365903602,1749979845960,-852.81,0.00022654,2]
[365903603,1749979845969,-918.13,0.00022654,2]
[365903604,1749979845978,-676.32,0.00022654,2]
[365903605,1749979845987,-680.79,0.00022654,2]
[365903606,1749979845996,-1358.41,0.00022656,2]
[365903607,1749979846005,-1654.7,0.00022656,2]
[365903608,1749979846014,-674.14,0.00022656,2]
[365903609,1749979846023,-460.0,0.00022656,2]
[365903610,1749979846032,-466.24704586,0.00022656,2]
[365903612,1749979846041,-460.0,0.00022656,2]
[365903613,1749979846050,-460.0,0.00022656,2]
[365903614,1749979846060,-460.0,0.00022656,2]
[365903616,1749979846069,-1840.42,0.00022657,2]
[365903617,1749979846078,-708.28,0.00022657,2]
[365903619,1749979846087,-460.0,0.00022657,2]
[365903621,1749979846096,-460.0,0.00022657,2]
[365903623,1749979846110,-460.0,0.00022657,2]
[365903625,1749979846119,-460.0,0.00022657,2]
[365903627,1749979846128,-493.83,0.00022657,2]
[365903629,1749979846137,-460.0,0.00022659,2]
[365903631,1749979846147,-460.0,0.00022659,2]
[365903633,1749979846156,-460.0,0.00022659,2]
[365903635,1749979846169,-460.0,0.00022659,2]
[365903637,1749979846179,-482.88,0.00022659,2]
[365903639,1749979846188,-1502.33,0.00022659,2]
[365903641,1749979846198,-460.0,0.00022659,2]
[365903643,1749979846207,-460.0,0.00022659,2]
[365903645,1749979846216,-937.65,0.00022659,2]
[365903647,1749979846225,-709.91,0.00022659,2]
[365903649,1749979846235,-460.0,0.00022659,2]
[365903651,1749979846244,-916.98,0.00022659,2]
[365903653,1749979846254,-1340.42,0.00022659,2]
[365903655,1749979846263,-1627.02,0.0002266,2]
[365903657,1749979846272,-765.73,0.0002266,2]
[365903659,1749979846281,-168.0,0.00022686,2]
[365903661,1749979846291,-748.52,0.00022694,4]
[365903663,1749979846300,-498.92,0.000227,7]
[365903665,1749979846309,-1000.0,0.00022739,2]
[365903667,1749979846318,-1000.0,0.00022739,2]
[365903669,1749979846329,-1000.0,0.00022739,2]
[365903672,1749979846339,-1000.0,0.00022739,2]
[365903674,1749979846350,-1000.0,0.00022739,2]
[365903676,1749979846360,-237.66574569,0.00022739,2]
[365903677,1749979846370,-1128.81958972,0.00022739,2]
[365903679,1749979846380,-1200.0,0.00022739,2]
[365903682,1749979846391,-1000.0,0.00022739,2]
[365903684,1749979846400,-1000.0,0.00022739,2]
[365903685,1749979846410,-1000.0,0.00022792,2]
[365903687,1749979846419,-748.52,0.00022794,4]
[365903689,1749979846428,-771.63379709,0.00022797,7]
[365903691,1749979846437,-1000.0,0.00022802,2]
[365903693,1749979846447,-1000.0,0.00022848,2]
[365903695,1749979846457,-1000.0,0.00022848,2]
[365903697,1749979846467,-500.0,0.00022848,2]
[365903699,1749979846476,-1000.0,0.00022854,2]
[365903701,1749979846485,-9673.56,0.00022884,2]
[365903703,1749979846494,-748.52,0.00022894,3]
[365903705,1749979846503,-1634.83,0.00022928,2]
[365903707,1749979846513,-852.81,0.00022928,2]
[365903709,1749979846523,-918.13,0.00022928,2]
[365903711,1749979846532,-676.32,0.00022928,2]
[365903713,1749979846541,-680.79,0.00022928,2]
[365903715,1749979846551,-1358.41,0.0002293,2]
[365903717,1749979846560,-1654.7,0.0002293,2]
[365903719,1749979846568,-674.14,0.0002293,2]
[365903721,1749979846578,-460.0,0.0002293,2]
[365903723,1749979846587,-295.67577443,0.0002293,2]
[365903725,1749979846596,-460.0,0.0002293,2]
[365903727,1749979846606,-460.0,0.0002293,2]
[365903729,1749979846615,-1840.42,0.00022931,2]
[365903731,1749979846625,-708.28,0.00022931,2]
[365903733,1749979846634,-460.0,0.00022931,2]
[365903735,1749979846643,-460.0,0.00022931,2]
[365903737,1749979846652,-460.0,0.00022931,2]
[365903739,1749979846662,-460.0,0.00022931,2]
[365903740,1749979846671,-493.83,0.00022931,2]
[365903742,1749979846680,-460.0,0.00022933,2]
[365903744,1749979846689,-460.0,0.00022933,2]
[365903746,1749979846699,-460.0,0.00022933,2]
[365903748,1749979846708,-460.0,0.00022933,2]
[365903750,1749979846717,-482.88,0.00022933,2]
[365903752,1749979846726,-1502.33,0.00022933,2]
[365903754,1749979846735,-460.0,0.00022933,2]
[365903756,1749979846745,-460.0,0.00022933,2]
[365903758,1749979846754,-937.65,0.00022933,2]
[365903760,1749979846764,-709.91,0.00022933,2]
[365903762,1749979846773,-460.0,0.00022933,2]
[365903764,1749979846781,-916.98,0.00022933,2]
[365903766,1749979846790,-1340.42,0.00022933,2]
[365903768,1749979846800,-1627.02,0.00022934,2]
[365903770,1749979846809,-765.73,0.00022934,2]
[365903772,1749979846819,-206.0,0.0002294,2]
[365903774,1749979846828,-564.02587587,0.00022958,2]
[365903776,1749979846837,-771.63379709,0.00022969,8]
[365903778,1749979846846,-648.01561426,0.00022978,2]
[365903780,1749979846856,-5600.94206452,0.0002299,2]
[365903782,1749979846865,-500.0,0.00022991,2]
[365903784,1749979846874,-748.52,0.00022994,3]
[365903786,1749979846884,-5989.46906902,0.00023,2]
[365903788,1749979846893,-827.1631375,0.00023,2]
[365903790,1749979846902,-6022.6412642,0.00023,3]
[365903792,1749979846912,-127618.16708313,0.00023,2]
[365903794,1749979846921,-20360.49078114,0.00023,20]
[365903798,1749979846941,-10322.21109386,0.00023,20]
[365904340,1749979852540,-1849.38990166,0.00023,20]
[365904344,1749979852636,-302.4999038,0.00023,20]
[365904346,1749979852647,-7563.7590977,0.00023,20]
[365904348,1749979852658,-397.6421035,0.00023,20]
[365904350,1749979852669,-796.4060023,0.00023,20]
[365904373,1749979852914,-342.29244883,0.00020462,2]
[365904375,1749979852925,-114.98234172,0.00020462,2]
[365904377,1749979852935,-457.27479055,0.00020464,2]
[365904379,1749979852944,-252.6974112,0.00020464,2]
[365904381,1749979852956,-204.57737935,0.00020464,2]
[365904383,1749979852965,-430.0,0.00020465,2]
[365904385,1749979852974,-460.0,0.00020467,2]
[365904386,1749979852984,-460.0,0.00020741,2]
[365904388,1749979852993,-2333.74260524,0.00023,20]
[365904390,1749979853008,-1045.36510411,0.00023,20]
[365904391,1749979853353,-161.99764877,0.00020458,2]
[365904392,1749979853363,-195.23573109,0.00020458,2]
[365904393,1749979853648,-184.81959144,0.00020458,2]
[365904394,1749979853659,-500.0,0.00020458,2]
[365904395,1749979853670,-264.16629319,0.00020458,2]
[365904396,1749979853680,-174.77288761,0.00020458,2]
[365904397,1749979853690,-500.0,0.00020458,2]
[365904398,1749979853699,-500.0,0.00020458,2]
[365904399,1749979853709,-500.0,0.00020458,2]
[365904400,1749979853718,-500.0,0.00020458,2]
[365904401,1749979853728,-500.0,0.00020458,2]
[365904402,1749979853737,-338.20343377,0.00020458,2]
[365904403,1749979853747,-500.0,0.00020458,2]
[365904404,1749979853757,-500.0,0.00020458,2]
[365904405,1749979853767,-500.0,0.00020458,2]
[365904406,1749979853777,-500.0,0.00020458,2]
[365904407,1749979853787,-500.0,0.00020458,2]
[365904408,1749979853796,-467.97011394,0.00020458,2]
[365904409,1749979853806,-282.80421314,0.00020458,2]
[365904410,1749979853815,-500.0,0.00020458,2]
[365904411,1749979853825,-500.0,0.00020458,2]
[365904412,1749979853834,-173.48882016,0.00020458,2]
[365904413,1749979853844,-241.87897674,0.00020458,2]
[365904414,1749979853853,-500.0,0.00020458,2]
[365904415,1749979853862,-500.0,0.00020458,2]
[365904417,1749979853871,-500.0,0.00020458,2]
[365904418,1749979853880,-500.0,0.00020458,2]
[365904419,1749979853889,-500.0,0.00020458,2]
[365904421,1749979853897,-500.0,0.00020458,2]
[365904422,1749979853907,-265.93721594,0.00020458,2]
[365904424,1749979853916,-500.0,0.00020458,2]
[365904425,1749979853925,-440.0,0.00020463,2]
[365904426,1749979853934,-460.0,0.00020463,2]
[365904428,1749979853943,-370.02466814,0.00020463,2]
[365904429,1749979853953,-460.0,0.00020737,2]
[365904431,1749979853962,-460.0,0.00021011,2]
[365904432,1749979853972,-460.0,0.00021015,2]
[365904434,1749979853981,-460.0,0.00021285,2]
[365904436,1749979853990,-460.0,0.00021289,2]
[365904438,1749979853999,-460.0,0.00021559,2]
[365904440,1749979854009,-460.0,0.00021563,2]
[365904442,1749979854018,-460.0,0.00021833,2]
[365904444,1749979854027,-459.97,0.00021837,2]
[365904446,1749979854037,-451.15499922,0.00021918,2]
[365904449,1749979854047,-460.0,0.00022107,2]
[365904451,1749979854057,-460.0,0.00022381,2]
[365904453,1749979854066,-540.99619222,0.00023,20]
[365904454,1749979854075,-835.55256958,0.00023,3]
[365904456,1749979854085,-424.47602138,0.00023,3]
[365904459,1749979854094,-500.0,0.00023008,2]
[365904461,1749979854104,-500.0,0.00023009,2]
[365904463,1749979854116,-500.0,0.0002301,2]
[365904465,1749979854125,-516.06281658,0.0002303,2]
[365904466,1749979854134,-500.0,0.0002303,2]
[365904468,1749979854144,-168.0,0.00023066,2]
[365904471,1749979854155,-268.99297369,0.00023086,2]
[365904473,1749979854164,-748.52,0.00023094,4]
[365904475,1749979854173,-771.63379709,0.00023141,8]
[365904477,1749979854184,-964.0,0.00023179,2]
[365904479,1749979854193,-748.52,0.00023194,7]
[365904480,1749979854203,-2591.42479894,0.000232,2]
[365904482,1749979854213,-500.0,0.00023202,2]
[365904485,1749979854222,-1634.83,0.00023202,2]
[365904487,1749979854232,-852.81,0.00023202,2]
[365904489,1749979854241,-918.13,0.00023202,2]
[365904491,1749979854251,-676.32,0.00023202,2]
[365904493,1749979854260,-680.79,0.00023202,2]
[365904494,1749979854269,-1358.41,0.00023204,2]
[365904497,1749979854279,-1654.7,0.00023204,2]
[365904498,1749979854288,-674.14,0.00023204,2]
[365904501,1749979854298,-460.0,0.00023204,2]
[365904502,1749979854307,-460.0,0.00023204,2]
[365904504,1749979854317,-460.0,0.00023204,2]
[365904506,1749979854326,-708.28,0.00023205,2]